fUST/lending_fUST_20240829
["ID","MTS","AMOUNT","RATE_DAILY","PERIOD"]
[336479788,1724867448278,-707.41,0.00019733,2]
[336479789,1724867448288,-500.0,0.00019733,2]
[336479790,1724867448297,-500.0,0.00019733,2]
[336479791,1724867448307,-169.94206752,0.00019733,2]
[336479792,1724867448317,-500.0,0.00019733,2]
[336479793,1724867448329,-499.51741703,0.00019733,2]
[336479794,1724867448339,-500.0,0.00019733,2]
[336479795,1724867448349,-545.17,0.00019733,2]
[336479796,1724867448360,-316.26719217,0.00019733,2]
[336479797,1724867448370,-151.0,0.00019824,2]
[336479798,1724867448380,-221.183518,0.00019824,2]
[336479799,1724867448390,-151.0,0.00019824,2]
[336479800,1724867448399,-35650.05706,0.00019876,2]
[336479801,1724867448409,-500.0,0.00019886,2]
[336479802,1724867448419,-500.0,0.00019886,2]
[336479803,1724867448430,-500.0,0.00019886,2]
[336479804,1724867448440,-500.0,0.00019886,2]
[336479805,1724867448449,-500.0,0.00019886,2]
[336479806,1724867448459,-305.48345209,0.00019886,2]
[336479807,1724867448468,-159.89,0.00019886,2]
[336479808,1724867448478,-500.0,0.00019886,2]
[336479809,1724867448488,-632.56,0.00019886,2]
[336479810,1724867448498,-500.0,0.00019886,2]
[336479811,1724867448509,-947.45,0.00019886,2]
[336479812,1724867448518,-500.0,0.00019886,2]
[336479813,1724867448527,-500.0,0.00019886,2]
[336479814,1724867448538,-687.69,0.00019886,2]
[336479815,1724867448548,-500.0,0.00019886,2]
[336479816,1724867448558,-500.0,0.00019886,2]
[336479817,1724867448569,-500.0,0.00019886,2]
[336479818,1724867448578,-500.0,0.00019886,2]
[336479819,1724867448588,-500.0,0.00019886,2]
[336479820,1724867448598,-500.0,0.00019886,2]
[336479821,1724867448609,-500.0,0.00019886,2]
[336479822,1724867448619,-500.0,0.00019886,2]
[336479823,1724867448628,-500.0,0.00019886,2]
[336479824,1724867448638,-537.09,0.00019886,2]
[336479825,1724867448647,-500.0,0.00019886,2]
[336479826,1724867448659,-500.0,0.00019886,2]
[336479827,1724867448669,-871.14,0.00019886,2]
[336479828,1724867448678,-500.0,0.00019886,2]
[336479829,1724867448698,-500.0,0.00019886,2]
[336479830,1724867448708,-500.0,0.00019886,2]
[336479831,1724867448719,-380.84,0.00019886,2]
[336479832,1724867448728,-500.0,0.00019886,2]
[336479833,1724867448738,-500.0,0.00019886,2]
[336479834,1724867448748,-500.0,0.00019886,2]
[336479835,1724867448758,-1654.49,0.00019886,2]
[336479836,1724867448768,-500.0,0.00019886,2]
[336479837,1724867448777,-500.0,0.00019886,2]
[336479838,1724867448787,-500.0,0.00019886,2]
[336479839,1724867448796,-500.0,0.00019886,2]
[336479840,1724867448806,-939.66,0.00019886,2]
[336479841,1724867448815,-500.0,0.00019886,2]
[336479842,1724867448824,-258.27,0.00019886,2]
[336479843,1724867448834,-500.0,0.00019886,2]
[336479844,1724867448843,-500.0,0.00019886,2]
[336479845,1724867448853,-4945.54,0.00019886,2]
[336479846,1724867448864,-500.0,0.00019886,2]
[336479847,1724867448874,-500.0,0.00019886,2]
[336479848,1724867448883,-500.0,0.00019886,2]
[336479849,1724867448893,-500.0,0.00019894,2]
[336479850,1724867448903,-862.87,0.00019894,2]
[336479851,1724867448913,-500.0,0.00019894,2]
[336479852,1724867448923,-500.0,0.00019894,2]
[336479853,1724867448936,-500.0,0.00019894,2]
[336479854,1724867448947,-634.58,0.00019894,2]
[336479855,1724867448957,-500.0,0.00019894,2]
[336479856,1724867448967,-867.49,0.00019894,2]
[336479857,1724867448976,-500.0,0.00019895,2]
[336479858,1724867448986,-500.0,0.00019895,2]
[336479859,1724867448995,-500.0,0.00019895,2]
[336479860,1724867449005,-500.0,0.00019895,2]
[336479861,1724867449014,-500.0,0.00019895,2]
[336479862,1724867449024,-545.47,0.00019895,2]
[336479863,1724867449033,-500.0,0.00019895,2]
[336479864,1724867449043,-500.0,0.00019895,2]
[336479865,1724867449053,-500.0,0.00019895,2]
[336479866,1724867449062,-660.47,0.00019895,2]
[336479867,1724867449072,-500.0,0.00019896,2]
[336479868,1724867449085,-500.0,0.00019896,2]
[336479869,1724867449094,-500.0,0.00019896,2]
[336479870,1724867449104,-500.0,0.00019896,2]
[336479871,1724867449114,-465.00776444,0.00019901,2]
[336479872,1724867449123,-826.32391322,0.00019906,5]
[336479873,1724867449132,-500.0,0.00019906,2]
[336479874,1724867449141,-360.84580243,0.00019906,2]
[336479875,1724867449150,-247.19181661,0.00019906,2]
[336479876,1724867449160,-500.0,0.00019906,2]
[336479877,1724867449169,-170.53051971,0.00019906,2]
[336479878,1724867449180,-577.83,0.00019906,2]
[336479879,1724867449192,-327.46138527,0.00019906,2]
[336479880,1724867449201,-548.43,0.00019906,2]
[336479881,1724867449210,-500.0,0.00019906,2]
[336479882,1724867449219,-500.0,0.00019906,2]
[336479883,1724867449228,-500.0,0.00019906,2]
[336479884,1724867449237,-500.0,0.00019906,2]
[336479885,1724867449247,-500.0,0.00019906,2]
[336479886,1724867449257,-820.56,0.00019906,2]
[336479887,1724867449267,-500.0,0.00019906,2]
[336479888,1724867449277,-500.0,0.00019906,2]
[336479889,1724867449286,-500.0,0.00019906,2]
[336479890,1724867449296,-619.38,0.00019906,2]
[336479891,1724867449306,-500.0,0.00019906,2]
[336479892,1724867449316,-500.0,0.00019906,2]
[336479893,1724867449325,-500.0,0.00019906,2]
[336479894,1724867449334,-500.0,0.00019906,2]
[336479895,1724867449343,-500.0,0.00019906,2]
[336479896,1724867449353,-500.0,0.00019906,2]
[336479897,1724867449364,-500.0,0.00019906,2]
[336479898,1724867449374,-500.0,0.00019906,2]
[336479899,1724867449384,-500.0,0.00019906,2]
[336479900,1724867449393,-500.0,0.00019906,2]
[336479901,1724867449402,-500.0,0.00019906,2]
[336479902,1724867449415,-500.0,0.00019906,2]
[336479903,1724867449425,-500.0,0.00019906,2]
[336479904,1724867449435,-500.0,0.00019906,2]
[336479905,1724867449446,-500.0,0.00019906,2]
[336479906,1724867449456,-500.0,0.00019906,2]
[336479907,1724867449466,-500.0,0.00019906,2]
[336479908,1724867449475,-500.0,0.00019906,2]
[336479909,1724867449485,-189.64511547,0.00019906,2]
[336479910,1724867449495,-500.0,0.00019906,2]
[336479911,1724867449504,-500.0,0.00019906,2]
[336479912,1724867449514,-500.0,0.00019906,2]
[336479913,1724867449524,-500.0,0.00019906,2]
[336479914,1724867449534,-500.0,0.00019906,2]
[336479915,1724867449544,-500.0,0.00019906,2]
[336479916,1724867449554,-500.0,0.00019906,2]
[336479917,1724867449564,-500.0,0.00019906,2]
[336479918,1724867449574,-268.47662912,0.00019906,2]
[336479919,1724867449583,-520.78,0.00019906,2]
[336479920,1724867449592,-924.17,0.00019906,2]
[336479921,1724867449602,-693.43,0.00019906,2]
[336479922,1724867449611,-151.0,0.00019906,2]
[336479923,1724867449621,-151.0,0.00019906,2]
[336479924,1724867449630,-151.0,0.00019906,2]
[336479925,1724867449640,-35650.05706,0.00019976,2]
[336479926,1724867449650,-500.0,0.00019986,2]
[336479927,1724867449659,-454.9748105,0.00019986,2]
[336479928,1724867449669,-534.49,0.00019986,2]
[336479929,1724867449678,-500.0,0.00019986,2]
[336479930,1724867449690,-500.0,0.00019986,2]
[336479931,1724867449699,-500.0,0.00019986,2]
[336479932,1724867449708,-500.0,0.00019986,2]
[336479933,1724867449718,-500.0,0.00019986,2]
[336479934,1724867449727,-500.0,0.00019986,2]
[336479935,1724867449737,-500.0,0.00019986,2]
[336479936,1724867449746,-500.0,0.00019986,2]
[336479937,1724867449755,-473.32360559,0.00019986,2]
[336479938,1724867449764,-336.37,0.00019986,2]
[336479939,1724867449774,-500.0,0.00019986,2]
[336479940,1724867449784,-500.0,0.00019986,2]
[336479941,1724867449793,-151.0,0.0001999,2]
[336479942,1724867449802,-151.0,0.0001999,2]
[336479943,1724867449812,-174.0809572,0.0002,2]
[336479944,1724867449822,-503.69054059,0.0002,2]
[336479945,1724867449832,-151.0,0.00020007,2]
[336479946,1724867449842,-151.0,0.00020007,2]
[336479947,1724867449852,-185.75,0.00020007,2]
[336479948,1724867449861,-500.0,0.00020007,2]
[336479949,1724867449871,-500.0,0.00020007,2]
[336479950,1724867449880,-615.67,0.00020007,2]
[336479951,1724867449890,-707.41,0.00020007,2]
[336479952,1724867449899,-500.0,0.00020007,2]
[336479953,1724867449909,-595.04,0.00020007,2]
[336479954,1724867449918,-500.0,0.00020007,2]
[336479955,1724867449928,-649.96,0.00020007,2]
[336479956,1724867449938,-545.17,0.00020007,2]
[336479957,1724867449947,-226.34983849,0.0002006,2]
[336479958,1724867449956,-500.0,0.00020149,2]
[336479959,1724867449965,-500.0,0.0002016,2]
[336479960,1724867449975,-500.0,0.0002016,2]
[336479961,1724867449984,-500.0,0.0002016,2]
[336479962,1724867449994,-500.0,0.0002016,2]
[336479963,1724867450003,-500.0,0.0002016,2]
[336479964,1724867450012,-632.56,0.0002016,2]
[336479965,1724867450021,-500.0,0.0002016,2]
[336479966,1724867450030,-947.45,0.0002016,2]
[336479967,1724867450040,-500.0,0.0002016,2]
[336479968,1724867450050,-687.69,0.0002016,2]
[336479969,1724867450058,-500.0,0.0002016,2]
[336479970,1724867450068,-500.0,0.0002016,2]
[336479971,1724867450081,-500.0,0.0002016,2]
[336479972,1724867450090,-500.0,0.0002016,2]
[336479973,1724867450099,-500.0,0.0002016,2]
[336479974,1724867450109,-500.0,0.0002016,2]
[336479975,1724867450119,-500.0,0.0002016,2]
[336479976,1724867450128,-500.0,0.0002016,2]
[336479977,1724867450138,-537.09,0.0002016,2]
[336479978,1724867450147,-500.0,0.0002016,2]
[336479979,1724867450158,-500.0,0.0002016,2]
[336479980,1724867450168,-871.14,0.0002016,2]
[336479981,1724867450178,-500.0,0.0002016,2]
[336479982,1724867450190,-500.0,0.0002016,2]
[336479983,1724867450199,-500.0,0.0002016,2]
[336479984,1724867450209,-500.0,0.0002016,2]
[336479985,1724867450219,-500.0,0.0002016,2]
[336479986,1724867450229,-500.0,0.0002016,2]
[336479987,1724867450238,-1654.49,0.0002016,2]
[336479988,1724867450248,-500.0,0.0002016,2]
[336479989,1724867450257,-500.0,0.0002016,2]
[336479990,1724867450266,-500.0,0.0002016,2]
[336479991,1724867450276,-500.0,0.0002016,2]
[336479992,1724867450284,-939.66,0.0002016,2]
[336479993,1724867450294,-500.0,0.0002016,2]
[336479994,1724867450303,-500.0,0.0002016,2]
[336479995,1724867450313,-500.0,0.0002016,2]
[336479996,1724867450323,-4945.54,0.0002016,2]
[336479997,1724867450332,-274.26046533,0.0002016,2]
[336479998,1724867450341,-500.0,0.0002016,2]
[336479999,1724867450351,-500.0,0.0002016,2]
[336480000,1724867450360,-500.0,0.00020168,2]
[336480001,1724867450369,-862.87,0.00020168,2]
[336480002,1724867450379,-500.0,0.00020168,2]
[336480003,1724867450389,-500.0,0.00020168,2]
[336480004,1724867450398,-500.0,0.00020168,2]
[336480005,1724867450407,-500.0,0.00020168,2]
[336480006,1724867450417,-867.49,0.00020168,2]
[336480007,1724867450427,-500.0,0.00020169,2]
[336480008,1724867450438,-500.0,0.00020169,2]
[336480009,1724867450446,-500.0,0.00020169,2]
[336480010,1724867450456,-500.0,0.00020169,2]
[336480011,1724867450465,-500.0,0.00020169,2]
[336480012,1724867450475,-545.47,0.00020169,2]
[336480013,1724867450484,-500.0,0.00020169,2]
[336480014,1724867450649,-500.0,0.00020169,2]
[336480015,1724867450659,-500.0,0.00020169,2]
[336480016,1724867450668,-660.47,0.00020169,2]
[336480017,1724867450678,-500.0,0.0002017,2]
[336480018,1724867450687,-500.0,0.0002017,2]
[336480019,1724867450697,-35650.05706,0.0002017,2]
[336480020,1724867450707,-500.0,0.0002017,2]
[336480021,1724867450717,-151.0,0.0002017,2]
[336480022,1724867450726,-151.0,0.0002017,2]
[336480023,1724867450736,-500.0,0.00020173,2]
[336480024,1724867450746,-500.0,0.00020173,2]
[336480025,1724867450756,-500.0,0.0002018,2]
[336480026,1724867450766,-577.83,0.0002018,2]
[336480027,1724867450776,-548.43,0.0002018,2]
[336480028,1724867450785,-500.0,0.0002018,2]
[336480029,1724867450795,-500.0,0.0002018,2]
[336480030,1724867450805,-500.0,0.0002018,2]
[336480031,1724867450814,-820.56,0.0002018,2]
[336480032,1724867450824,-151.0,0.0002018,2]
[336480033,1724867450834,-500.0,0.0002018,2]
[336480034,1724867450843,-500.0,0.0002018,2]
[336480035,1724867450853,-500.0,0.0002018,2]
[336480036,1724867450863,-500.0,0.0002018,2]
[336480037,1724867450872,-500.0,0.0002018,2]
[336480038,1724867450882,-500.0,0.0002018,2]
[336480039,1724867450892,-500.0,0.0002018,2]
[336480040,1724867450901,-500.0,0.0002018,2]
[336480041,1724867450911,-500.0,0.0002018,2]
[336480042,1724867450920,-500.0,0.0002018,2]
[336480043,1724867450930,-153.05342846,0.0002018,2]
[336480044,1724867450944,-175.17,0.0002018,2]
[336480045,1724867450953,-500.0,0.0002018,2]
[336480046,1724867450962,-500.0,0.0002018,2]
[336480047,1724867450971,-500.0,0.0002018,2]
[336480048,1724867450981,-350.15,0.0002018,2]
[336480049,1724867450990,-500.0,0.0002018,2]
[336480050,1724867450999,-500.0,0.0002018,2]
[336480051,1724867451009,-500.0,0.0002018,2]
[336480052,1724867451018,-500.0,0.0002018,2]
[336480053,1724867451027,-500.0,0.0002018,2]
[336480054,1724867451037,-500.0,0.0002018,2]
[336480055,1724867451046,-500.0,0.0002018,2]
[336480056,1724867451056,-321.08129065,0.0002018,2]
[336480057,1724867451065,-500.0,0.0002018,2]
[336480058,1724867451077,-500.0,0.0002018,2]
[336480059,1724867451088,-309.5716099,0.0002018,2]
[336480060,1724867451097,-500.0,0.0002018,2]
[336480061,1724867451107,-243.3219,0.0002018,2]
[336480062,1724867451117,-924.17,0.0002018,2]
[336480063,1724867451126,-693.43,0.0002018,2]
[336480064,1724867451136,-631.73071413,0.000202,2]
[336480065,1724867451146,-500.0,0.00020215,2]
[336480066,1724867451158,-151.0,0.0002025,2]
[336480067,1724867451167,-151.0,0.0002025,2]
[336480068,1724867451176,-151.0,0.0002025,2]
[336480069,1724867451187,-151.0,0.0002025,2]
[336480070,1724867451199,-151.0,0.0002025,2]
[336480071,1724867451209,-175.400079,0.0002025,2]
[336480072,1724867451218,-238.917269,0.0002025,2]
[336480073,1724867451228,-238.917269,0.0002025,2]
[336480074,1724867451237,-151.0,0.0002025,2]
[336480075,1724867451247,-176.830763,0.0002025,2]
[336480076,1724867451256,-176.830763,0.0002025,2]
[336480077,1724867451265,-151.0,0.0002025,2]
[336480078,1724867451275,-151.0,0.0002025,2]
[336480079,1724867451284,-434.450637,0.0002025,2]
[336480080,1724867451293,-335.15472,0.0002025,2]
[336480081,1724867451302,-434.450637,0.0002025,2]
[336480082,1724867451311,-335.15472,0.0002025,2]
[336480083,1724867451321,-151.0,0.0002025,2]
[336480084,1724867451330,-299.058762,0.0002025,2]
[336480085,1724867451340,-299.058762,0.0002025,2]
[336480086,1724867451350,-248.63663,0.0002025,2]
[336480087,1724867451359,-248.63663,0.0002025,2]
[336480088,1724867451368,-217.140601,0.0002025,2]
[336480089,1724867451377,-217.140601,0.0002025,2]
[336480090,1724867451387,-151.0,0.0002025,2]
[336480091,1724867451396,-151.0,0.0002025,2]
[336480092,1724867451405,-151.0,0.0002025,2]
[336480093,1724867451415,-788.910048,0.0002025,2]
[336480094,1724867451424,-788.910048,0.0002025,2]
[336480095,1724867451433,-35650.05706,0.00020259,2]
[336480096,1724867451453,-151.0,0.0002026,2]
[336480097,1724867451462,-151.0,0.0002026,2]
[336480098,1724867451472,-500.0,0.0002026,2]
[336480099,1724867451481,-534.49,0.0002026,2]
[336480100,1724867451490,-500.0,0.0002026,2]
[336480101,1724867451499,-500.0,0.0002026,2]
[336480102,1724867451508,-500.0,0.0002026,2]
[336480103,1724867451518,-500.0,0.0002026,2]
[336480104,1724867451527,-500.0,0.0002026,2]
[336480105,1724867451538,-500.0,0.0002026,2]
[336480106,1724867451547,-500.0,0.0002026,2]
[336480107,1724867451557,-500.0,0.0002026,2]
[336480108,1724867451566,-13542.02010428,0.00020269,2]
[336480109,1724867451689,-10368.20160062,0.00020269,2]
[336480145,1724868445175,-156.87581106,0.00014247,2]
[336480146,1724868446516,-519.99918894,0.00014247,2]
[336480147,1724868446540,-224.681891,0.00014247,2]
[336480148,1724868446563,-1886.2376044,0.00017923,2]
[336480149,1724868446585,-106.24769347,0.00018106,2]
[336480162,1724868631822,-472.6363864,0.00018027,2]
[336480163,1724868631833,-161.7865787,0.00018108,2]
[336480164,1724868631843,-317.208626,0.00018234,2]
[336480165,1724868631853,-354.530176,0.00018904,2]
[336480166,1724868631864,-162.331416,0.00019178,2]
[336480167,1724868631873,-6093.31753254,0.00019237,2]
[336480168,1724868631883,-2000.0,0.00019247,2]
[336480169,1724868631893,-300.0,0.00019299,2]
[336480170,1724868631903,-818.747697,0.000193,2]
[336480171,1724868631914,-500.0,0.00019336,2]
[336480172,1724868631924,-787.75,0.00019336,2]
[336480173,1724868631935,-500.0,0.00019336,2]
[336480174,1724868631944,-500.0,0.00019336,2]
[336480175,1724868631954,-500.0,0.00019336,2]
[336480176,1724868631964,-500.0,0.00019336,2]
[336480177,1724868631976,-500.0,0.00019336,2]
[336480178,1724868631986,-603.27,0.00019336,2]
[336480179,1724868631995,-500.0,0.00019336,2]
[336480180,1724868632004,-500.0,0.00019336,2]
[336480181,1724868632014,-8012.4513427,0.00019336,2]
[336480213,1724868637939,-13377.5828933,0.00019336,2]
[336480215,1724868637950,-152.01454984,0.00019337,2]
[336480217,1724868637962,-500.0,0.00019337,2]
[336480219,1724868637971,-500.0,0.00019337,2]
[336480220,1724868637983,-500.0,0.00019337,2]
[336480222,1724868637992,-500.0,0.00019337,2]
[336480223,1724868638003,-500.0,0.00019337,2]
[336480224,1724868638012,-500.0,0.00019337,2]
[336480225,1724868638022,-439.75653772,0.00019337,2]
[336480227,1724868638031,-500.0,0.00019337,2]
[336480228,1724868638041,-551.81502551,0.00019337,2]
[336480230,1724868638051,-526.51039113,0.00019337,2]
[336480232,1724868638060,-500.0,0.00019337,2]
[336480234,1724868638070,-505.21514289,0.00019337,2]
[336480236,1724868638084,-513.29,0.00019337,2]
[336480237,1724868638094,-500.0,0.00019337,2]
[336480239,1724868638104,-4257.64,0.00019337,2]
[336480241,1724868638114,-806.78,0.00019337,2]
[336480243,1724868638123,-500.96175252,0.00019337,2]
[336480244,1724868638133,-500.0,0.00019337,2]
[336480245,1724868638144,-592.7,0.00019337,2]
[336480246,1724868638153,-500.0,0.00019337,2]
[336480247,1724868638162,-500.0,0.00019337,2]
[336480248,1724868638172,-500.0,0.00019337,2]
[336480249,1724868638181,-703.82,0.00019337,2]
[336480250,1724868638191,-834.27,0.00019337,2]
[336480251,1724868638201,-500.0,0.00019337,2]
[336480252,1724868638210,-500.0,0.00019337,2]
[336480253,1724868638221,-500.0,0.00019337,2]
[336480254,1724868638231,-500.0,0.00019337,2]
[336480255,1724868638240,-646.82,0.00019337,2]
[336480256,1724868638250,-501.68083335,0.00019337,2]
[336480257,1724868638258,-500.0,0.00019337,2]
[336480258,1724868638268,-163.40732104,0.00019337,2]
[336480259,1724868638277,-500.0,0.00019337,2]
[336480260,1724868638286,-500.0,0.00019337,2]
[336480261,1724868638296,-500.0,0.00019337,2]
[336480262,1724868638305,-500.0,0.00019337,2]
[336480263,1724868638315,-500.0,0.00019337,2]
[336480264,1724868638328,-500.0,0.00019337,2]
[336480265,1724868638343,-500.0,0.00019337,2]
[336480266,1724868638353,-500.0,0.00019337,2]
[336480267,1724868638362,-500.0,0.00019337,2]
[336480268,1724868638371,-500.0,0.00019337,2]
[336480269,1724868638381,-500.0,0.00019337,2]
[336480270,1724868638390,-500.0,0.00019337,2]
[336480271,1724868638399,-500.0,0.00019337,2]
[336480272,1724868638409,-500.0,0.00019337,2]
[336480273,1724868638418,-515.36,0.00019337,2]
[336480274,1724868638427,-500.0,0.00019337,2]
[336480275,1724868638437,-500.0,0.00019337,2]
[336480276,1724868638447,-500.0,0.00019337,2]
[336480277,1724868638456,-500.0,0.00019337,2]
[336480278,1724868638465,-500.0,0.00019337,2]
[336480279,1724868638476,-500.0,0.00019337,2]
[336480280,1724868638489,-500.0,0.00019337,2]
[336480281,1724868638498,-500.0,0.00019337,2]
[336480282,1724868638508,-500.0,0.00019337,2]
[336480283,1724868638518,-500.0,0.00019337,2]
[336480284,1724868638530,-746.78,0.00019337,2]
[336480285,1724868638540,-500.0,0.00019337,2]
[336480286,1724868638550,-500.0,0.00019337,2]
[336480287,1724868638563,-500.0,0.00019337,2]
[336480288,1724868638575,-500.0,0.00019337,2]
[336480289,1724868638585,-202.66750328,0.00019337,2]
[336480290,1724868638595,-500.0,0.00019337,2]
[336480291,1724868638604,-333.43068512,0.00019337,2]
[336480292,1724868638613,-500.0,0.00019337,2]
[336480293,1724868638622,-2065.43,0.00019337,2]
[336480294,1724868638632,-500.0,0.00019337,2]
[336480295,1724868638642,-500.0,0.00019337,2]
[336480296,1724868638653,-500.0,0.00019337,2]
[336480297,1724868638663,-500.0,0.00019337,2]
[336480298,1724868638672,-500.0,0.00019337,2]
[336480299,1724868638681,-500.0,0.00019337,2]
[336480300,1724868638691,-500.0,0.00019337,2]
[336480301,1724868638700,-500.0,0.00019337,2]
[336480302,1724868638710,-500.0,0.00019337,2]
[336480303,1724868638719,-500.0,0.00019337,2]
[336480304,1724868638729,-4829.83676804,0.00019337,2]
[336480305,1724868638743,-16560.19746796,0.00019337,2]
[336480306,1724868638755,-502.36893807,0.00019338,2]
[336480307,1724868638764,-500.0,0.00019338,2]
[336480308,1724868638774,-500.0,0.00019338,2]
[336480309,1724868638784,-500.0,0.00019338,2]
[336480310,1724868638954,-500.0,0.00019338,2]
[336480311,1724868638964,-500.0,0.00019338,2]
[336480312,1724868638977,-503.65532482,0.00019338,2]
[336480313,1724868638987,-500.0,0.00019338,2]
[336480314,1724868638996,-500.0,0.00019338,2]
[336480315,1724868639006,-500.0,0.00019338,2]
[336480316,1724868639016,-500.0,0.00019338,2]
[336480317,1724868639026,-500.0,0.00019338,2]
[336480318,1724868639035,-500.0,0.00019338,2]
[336480319,1724868639045,-500.0,0.00019338,2]
[336480320,1724868639057,-500.0,0.00019338,2]
[336480321,1724868639067,-500.0,0.00019338,2]
[336480322,1724868639078,-500.0,0.00019338,2]
[336480323,1724868639088,-500.0,0.00019345,2]
[336480324,1724868639098,-500.0,0.00019345,2]
[336480325,1724868639107,-500.0,0.00019345,2]
[336480326,1724868639117,-500.0,0.00019345,2]
[336480327,1724868639127,-500.0,0.00019345,2]
[336480328,1724868639136,-500.0,0.00019345,2]
[336480329,1724868639146,-500.0,0.00019345,2]
[336480330,1724868639156,-500.0,0.00019345,2]
[336480331,1724868639165,-500.0,0.00019345,2]
[336480332,1724868639175,-500.0,0.00019345,2]
[336480333,1724868639185,-500.0,0.00019345,2]
[336480334,1724868639195,-500.0,0.00019345,2]
[336480335,1724868639205,-500.0,0.00019345,2]
[336480336,1724868639215,-500.0,0.00019345,2]
[336480337,1724868639224,-500.0,0.00019345,2]
[336480338,1724868639234,-500.0,0.00019345,2]
[336480339,1724868639244,-500.0,0.00019345,2]
[336480340,1724868639253,-500.0,0.00019345,2]
[336480341,1724868639262,-500.0,0.00019345,2]
[336480342,1724868639272,-500.0,0.00019345,2]
[336480343,1724868639282,-500.0,0.00019345,2]
[336480344,1724868639292,-303.07367789,0.00019345,2]
[336480345,1724868639302,-500.0,0.00019345,2]
[336480346,1724868639312,-500.0,0.00019345,2]
[336480347,1724868639325,-500.0,0.00019345,2]
[336480348,1724868639334,-500.0,0.00019345,2]
[336480349,1724868639344,-500.0,0.00019345,2]
[336480350,1724868639354,-500.0,0.00019345,2]
[336480351,1724868639363,-500.0,0.00019345,2]
[336480352,1724868639372,-500.0,0.00019345,2]
[336480353,1724868639382,-500.0,0.00019345,2]
[336480354,1724868639392,-500.0,0.00019345,2]
[336480355,1724868639402,-500.0,0.00019345,2]
[336480356,1724868639412,-500.0,0.00019345,2]
[336480357,1724868639422,-500.0,0.00019345,2]
[336480358,1724868639432,-500.0,0.00019345,2]
[336480359,1724868639441,-500.0,0.00019345,2]
[336480360,1724868639451,-500.0,0.00019345,2]
[336480361,1724868639460,-500.0,0.00019345,2]
[336480362,1724868639470,-510.21,0.00019345,2]
[336480363,1724868639480,-500.0,0.00019345,2]
[336480364,1724868639494,-500.0,0.00019345,2]
[336480365,1724868639503,-500.0,0.00019345,2]
[336480366,1724868639513,-198.8425443,0.00019345,2]
[336480367,1724868639523,-500.0,0.00019345,2]
[336480369,1724868639532,-500.0,0.00019345,2]
[336480370,1724868639542,-500.0,0.00019345,2]
[336480372,1724868639552,-815.35,0.00019345,2]
[336480374,1724868639562,-500.0,0.00019345,2]
[336480376,1724868639574,-500.0,0.00019345,2]
[336480378,1724868639583,-500.0,0.00019345,2]
[336480379,1724868639592,-500.0,0.00019345,2]
[336480380,1724868639602,-500.0,0.00019345,2]
[336480381,1724868639611,-500.0,0.00019345,2]
[336480382,1724868639621,-500.0,0.00019345,2]